{"text_format":"1","workbook":"xlsx","n_sheets":3,"sheets":["данные","оБРАЗЕЦ","ЯНВ 16"],"not_rendered":{"charts":0,"images":0,"macros":1,"external_links":0,"defined_names":2,"comments":0,"pivot_tables":0},"unopened":[],"bounds":{"document_bytes":16777216,"sheet_cells":100000,"rows_first":2000,"rows_last":500,"rows_between":2000,"halvings":0,"cell_chars":16384,"cell_head_chars":4096},"cells_cut":0,"cells_raw":0,"read":"whole","date_system":"1900"}

{"sheet":"данные","index":0,"n_rows":357,"n_cols":7,"rows_kept":357,"cut":false,"hidden":false,"merged":[]}
[]
[null,null,"МУЖ","возраст","заболевание","дней ВН","СЛУЧАЕВ"]
[null,null,null,22,"Н",12,1]
[null,null,null,23,"А",4,1]
[null,null,null,23,"Э",19,1]
[null,null,null,23,"О",7,1]
[null,null,null,24,"С",10,1]
[null,null,null,24,"М",2,1]
[null,null,null,24,"А",3,1]
[null,null,null,25,"Н",8,1]
[null,null,null,26,"Н",6,1]
[null,null,null,27,"Э",17,1]
[null,null,null,27,"О",3,1]
[null,null,null,28,"О",3,1]
[null,null,null,28,"Н",13,1]
[null,null,null,28,"М",4,1]
[null,null,null,28,"Н",12,1]
[null,null,null,28,"М",2,1]
[null,null,null,28,"Н",13,1]
[null,null,null,29,"М",6,1]
[null,null,null,29,"М",3,1]
[null,null,null,29,"А",3,1]
[null,null,null,29,"Э",17,1]
[null,null,null,30,"А",5,1]
[null,null,null,30,"Н",8,1]
[null,null,null,30,"Н",15,1]
[null,null,null,30,"О",10,1]
[null,null,null,30,"Э",2,1]
[null,null,null,30,"Н",34,1]
[null,null,null,30,"Н",14,1]
[null,null,null,30,"Э",15,1]
[null,null,null,31,"Э",17,1]
[null,null,null,31,"Н",4,1]
[null,null,null,31,"Н",15,1]
[null,null,null,31,"Э",7,1]
[null,null,null,31,"Э",6,1]
[null,null,null,32,"Э",14,1]
[null,null,null,32,"А",3,1]
[null,null,"М",32,"АЗОО",3,1]
[null,null,null,33,"Н",14,1]
[null,null,null,33,"Н",22,1]
[null,null,null,33,"Н",14,1]
[null,null,null,33,"О",3,1]
[null,null,null,33,"Э",20,1]
[null,null,null,33,"Н",6,1]
[null,null,null,34,"А",3,1]
[null,null,null,34,"А",2,1]
[null,null,null,34,"Н",12,1]
[null,null,null,34,"Н",15,1]
[null,null,null,34,"А",3,1]
[null,null,null,34,"М",10,1]
[null,null,null,34,"М",4,1]
[null,null,null,34,"Э",22,1]
[null,null,null,34,"Э",18,1]
[null,null,null,35,"Н",8,1]
[null,null,null,35,"Н",8,1]
[null,null,null,35,"А",3,1]
[null,null,null,35,"М",2,1]
[null,null,null,35,"Н",15,1]
[null,null,null,35,"Н",11,1]
[null,null,null,36,"О",7,1]
[null,null,null,37,"Э",14,1]
[null,null,null,37,"А",3,1]
[null,null,null,37,"М",2,1]
[null,null,null,37,"А",3,1]
[null,null,null,38,"Н",9,1]
[null,null,null,38,"О",12,1]
[null,null,null,39,"Э",21,1]
[null,null,null,39,"М",13,1]
[null,null,null,39,"М",2,1]
[null,null,null,40,"А",4,1]
[null,null,null,40,"Э",27,1]
[null,null,null,41,"Э",1,1]
[null,null,null,42,"М",3,1]
[null,null,null,42,"М",2,1]
[null,null,null,43,"Э",12,1]
[null,null,null,44,"М",3,1]
[null,null,null,44,"А",6,1]
[null,null,null,44,"Н",9,1]
[null,null,null,54,"М",2,1]
[null,null,null,58,"О",9,1]
[null,null,29,null,"В",3,1]
[null,null,42,null,"АЗ",3,1]
[null,null,null,null,null,null,1]
[null,null,null,null,null,null,1]
[null,null,null,null,null,null,1]
[null,null,null,null,null,null,1]
[null,null,null,null,null,null,1]
[null,null,null,null,null,null,1]
[null,null,null,null,null,null,1]
[null,null,null,null,null,null,1]
[null,null,null,null,null,null,1]
[null,null,null,null,null,null,1]
[null,null,null,null,null,null,1]
[null,null,null,null,null,null,1]
[null,null,null,null,null,null,1]
[null,null,null,null,null,null,1]
[null,null,null,null,null,null,1]
[null,null,null,null,null,null,1]
[null,null,null,null,null,null,1]
[null,null,null,null,null,null,1]
[null,null,null,null,null,null,1]
[null,null,null,null,null,null,1]
[null,null,null,null,null,null,1]
[null,null,null,null,null,null,1]
[null,null,null,null,null,null,1]
[null,null,null,null,null,null,1]
[null,null,null,null,null,null,1]
[null,null,null,null,null,null,1]
[null,null,null,null,null,null,1]
[null,null,null,null,null,null,1]
[null,null,null,null,null,null,1]
[null,null,null,null,null,null,1]
[null,null,null,null,null,null,1]
[null,null,null,null,null,null,1]
[null,null,null,null,null,null,1]
[null,null,null,null,null,null,1]
[null,null,null,null,null,null,1]
[null,null,null,null,null,null,1]
[null,null,null,null,null,null,1]
[null,null,null,null,null,null,1]
[null,null,null,null,null,null,1]
[null,null,null,null,null,null,1]
[null,null,null,null,null,null,1]
[null,null,null,null,null,null,1]
[null,null,null,null,null,null,1]
[null,null,null,null,null,null,1]
[null,null,null,null,null,null,1]
[null,null,null,null,null,null,1]
[null,null,null,null,null,null,1]
[null,null,null,null,null,null,1]
[null,null,null,null,null,null,1]
[null,null,null,null,null,null,1]
[null,null,null,null,null,null,1]
[null,null,null,null,null,null,1]
[null,null,null,null,null,null,1]
[null,null,null,null,null,null,1]
[null,null,null,null,null,null,1]
[null,null,null,null,null,null,1]
[null,null,null,null,null,null,1]
[null,null,null,null,null,null,1]
[null,null,null,null,null,null,1]
[null,null,null,null,null,null,1]
[null,null,null,null,null,null,1]
[null,null,null,null,null,null,1]
[null,null,null,null,null,null,1]
[null,null,null,null,null,null,1]
[null,null,null,null,null,null,1]
[null,null,null,null,null,null,1]
[null,null,null,null,null,null,1]
[null,null,null,null,null,null,1]
[null,null,null,null,null,null,1]
[null,null,null,null,null,null,1]
[null,null,null,null,null,null,1]
[null,null,null,null,null,null,1]
[null,null,null,null,null,null,1]
[null,null,null,null,null,null,1]
[null,null,null,null,null,null,1]
[null,null,null,null,null,null,1]
[null,null,null,null,null,null,1]
[null,null,null,null,null,null,1]
[null,null,null,null,null,null,1]
[null,null,null,null,null,null,1]
[null,null,null,null,null,null,1]
[null,null,null,null,null,null,1]
[null,null,null,null,null,null,1]
[null,null,null,null,null,null,1]
[null,null,null,null,null,null,1]
[null,null,null,null,null,null,1]
[null,null,null,null,null,null,1]
[null,null,null,null,null,null,1]
[null,null,null,null,null,null,1]
[null,null,null,null,null,null,1]
[null,null,null,null,null,null,1]
[null,null,null,null,null,null,1]
[null,null,null,null,null,null,1]
[null,null,null,null,null,null,1]
[null,null,null,null,null,null,1]
[null,null,null,null,null,null,1]
[null,null,null,null,null,null,1]
[null,null,null,null,null,null,1]
[null,null,null,null,null,null,1]
[null,null,null,null,null,null,1]
[null,null,null,null,null,null,1]
[null,null,null,null,null,null,1]
[null,null,null,null,null,null,1]
[null,null,null,null,null,null,1]
[null,null,null,null,null,null,1]
[null,null,null,null,null,null,1]
[null,null,null,null,null,null,1]
[null,null,null,null,null,null,1]
[null,null,null,null,null,null,1]
[null,null,null,null,null,null,1]
[null,null,null,null,null,null,1]
[null,null,null,null,null,null,1]
[null,null,null,null,null,null,1]
[null,null,null,null,null,null,1]
[null,null,null,null,null,null,1]
[null,null,null,null,null,null,1]
[null,null,null,null,null,null,1]
[null,null,null,null,null,null,1]
[null,null,null,null,null,null,1]
[null,null,null,null,null,null,1]
[null,null,null,null,null,null,1]
[null,null,null,null,null,null,1]
[null,null,null,null,null,null,1]
[null,null,null,null,null,null,1]
[null,null,null,null,null,null,1]
[null,null,null,null,null,null,1]
[null,null,null,null,null,null,1]
[null,null,null,null,null,null,1]
[null,null,null,null,null,null,1]
[null,null,null,null,null,null,1]
[null,null,null,null,null,null,1]
[null,null,null,null,null,null,1]
[null,null,null,null,null,null,1]
[null,null,null,null,null,null,1]
[null,null,null,null,null,null,1]
[null,null,null,null,null,null,1]
[null,null,null,null,null,null,1]
[null,null,null,null,null,null,1]
[null,null,null,null,null,null,1]
[null,null,null,null,null,null,1]
[null,null,null,null,null,null,1]
[null,null,null,null,null,null,1]
[null,null,null,null,null,null,1]
[null,null,null,null,null,null,1]
[null,null,null,null,null,null,1]
[null,null,null,null,null,null,1]
[null,null,null,null,null,null,1]
[null,null,null,null,null,null,1]
[null,null,null,null,null,null,1]
[null,null,null,null,null,null,1]
[null,null,null,null,null,null,1]
[null,null,null,null,null,null,1]
[null,null,null,null,null,null,1]
[null,null,null,null,null,null,1]
[null,null,null,null,null,null,1]
[null,null,null,null,null,null,1]
[null,null,null,null,null,null,1]
[null,null,null,null,null,null,1]
[null,null,null,null,null,null,1]
[null,null,null,null,null,null,1]
[null,null,null,null,null,null,1]
[null,null,null,null,null,null,1]
[null,null,null,null,null,null,1]
[null,null,null,null,null,null,1]
[null,null,null,null,null,null,1]
[null,null,null,null,null,null,1]
[null,null,null,null,null,null,1]
[null,null,null,null,null,null,1]
[null,null,null,null,null,null,1]
[null,null,null,null,null,null,1]
[null,null,null,null,null,null,1]
[null,null,null,null,null,null,1]
[null,null,null,null,null,null,1]
[null,null,null,null,null,null,1]
[null,null,null,null,null,null,1]
[null,null,null,null,null,null,1]
[null,null,null,null,null,null,1]
[null,null,null,null,null,null,1]
[null,null,null,null,null,null,1]
[null,null,null,null,null,null,1]
[null,null,null,null,null,null,1]
[null,null,null,null,null,null,1]
[null,null,null,null,null,null,1]
[null,null,null,null,null,null,1]
[null,null,null,null,null,null,1]
[null,null,null,null,null,null,1]
[null,null,null,null,null,null,1]
[null,null,null,null,null,null,1]
[null,null,null,null,null,null,1]
[null,null,null,null,null,null,1]
[null,null,null,null,null,null,1]
[null,null,null,null,null,null,1]
[null,null,null,null,null,null,1]
[null,null,null,null,null,null,1]
[null,null,null,null,null,null,1]
[null,null,null,null,null,null,1]
[null,null,null,null,null,null,1]
[null,null,null,null,null,null,1]
[null,null,null,null,null,null,1]
[null,null,null,null,null,null,1]
[null,null,null,null,null,null,1]
[null,null,null,null,null,null,1]
[null,null,null,null,null,null,1]
[null,null,null,null,null,null,1]
[null,null,null,null,null,null,1]
[null,null,null,null,null,null,1]
[null,null,null,null,null,null,1]
[null,null,null,null,null,null,1]
[null,null,null,null,null,null,1]
[null,null,null,null,null,null,1]
[null,null,null,null,null,null,1]
[null,null,null,null,null,null,1]
[null,null,null,null,null,null,1]
[null,null,null,null,null,null,1]
[null,null,null,null,null,null,1]
[null,null,null,null,null,null,1]
[null,null,null,null,null,null,1]
[null,null,null,null,null,null,1]
[null,null,null,null,null,null,1]
[null,null,null,null,null,null,1]
[null,null,null,null,null,null,1]
[null,null,null,null,null,null,1]
[null,null,null,null,null,null,1]
[null,null,null,null,null,null,1]
[null,null,null,null,null,null,1]
[null,null,null,null,null,null,1]
[null,null,null,null,null,null,1]
[null,null,null,null,null,null,1]
[null,null,null,null,null,null,1]
[null,null,null,null,null,null,1]
[null,null,null,null,null,null,1]
[null,null,null,null,null,null,1]
[null,null,null,null,null,null,1]
[null,null,null,null,null,null,1]
[null,null,null,null,null,null,1]
[null,null,null,null,null,null,1]
[null,null,null,null,null,null,1]
[null,null,null,null,null,null,1]
[null,null,null,null,null,null,1]
[null,null,null,null,null,null,1]
[null,null,null,null,null,null,1]
[null,null,null,null,null,null,1]
[null,null,null,null,null,null,1]
[null,null,null,null,null,null,1]
[null,null,null,null,null,null,1]
[null,null,null,null,null,null,1]
[null,null,null,null,null,null,1]
[null,null,null,null,null,null,1]
[null,null,null,null,null,null,1]
[null,null,null,null,null,null,1]
[null,null,null,null,null,null,1]
[null,null,null,null,null,null,1]
[null,null,null,null,null,null,1]
[null,null,null,null,null,null,1]
[null,null,null,null,null,null,1]
[null,null,null,null,null,null,1]
[null,null,null,null,null,null,1]
[null,null,null,null,null,null,1]
[null,null,null,null,null,null,1]
[null,null,null,null,null,null,1]
[null,null,null,null,null,null,1]
[null,null,null,null,null,null,1]
[null,null,null,null,null,null,1]
[null,null,null,null,null,null,1]
[null,null,null,null,null,null,1]
[null,null,null,null,null,null,1]
[null,null,null,null,null,null,1]
[null,null,null,null,null,null,1]
[null,null,null,null,null,null,1]
[null,null,null,null,null,null,1]
[null,null,null,null,null,null,1]
[null,null,null,null,null,null,1]
[null,null,null,null,null,null,1]
[null,null,null,null,null,{"$f":"SUM(F3:F356)","v":724},{"$f":"SUM(G3:G356)","v":354}]

{"sheet":"оБРАЗЕЦ","index":1,"n_rows":22,"n_cols":25,"rows_kept":22,"cut":false,"hidden":false,"merged":[[0,12,1,13],[0,4,2,4],[0,5,2,5],[0,6,1,7],[0,8,1,9],[0,10,1,11],[0,14,1,15],[0,16,1,17],[0,18,1,19],[0,20,1,21],[0,22,1,23],[2,16,2,17],[2,18,2,19],[2,20,2,21],[2,22,2,23],[16,6,16,7],[2,6,2,7],[2,8,2,9],[2,10,2,11],[2,12,2,13],[2,14,2,15]]}
[null,null,"гг рождения",null,"ЧИСЛО ДНЕЙ ВН","ЧИСЛО СЛУЧАЕВ ","1999-1995",null,"1990-1994",null,"1989-1985",null,1984,null,"1979-1975",null,"1970-1974",null,"1965-1969",null,"1964-1962",null,1959,null,1954]
[null,null,null,null,null,null,null,null,null,null,null,null,null,null,null,null,null,null,null,null,null,null,null,null,"ранее"]
[null,null,"возраст",null,null,null,"15-19",null,"20-24",null,"25-29",null,"30-34",null,"35-39",null,"40-44",null,"45-49",null,"50-54",null,"55-59",null,60]
[null,"строка",null,"ср кд",null,null,"дни","случ.","дни","случ.","дни","случ.","дни","случ.","дни","случ.","дни","случ.","дни","случ.","дни","случ.","дни","случ."]
["О",6,"новообразования",{"$f":"E5/F5","v":7},{"$f":"G5+I5+K5+M5+O5+Q5+S5+U5+W5+Y5","v":7},{"$f":"H5+J5+L5+N5+P5+R5+T5+V5+X5","v":1},null,null,7,1]
["З",8,"из них злокачественные",{"$f":"E6/F6","v":{"$error":"#DIV/0!"}},{"$f":"G6+I6+K6+M6+O6+Q6+S6+U6+W6+Y6","v":0},{"$f":"H6+J6+L6+N6+P6+R6+T6+V6+X6","v":0}]
["М",43.44,"Б-ни МПС",null,2,1,null,null,2,1]
["АЗ",43,"МУЖ",{"$error":"#DIV/0!"},0,0]
["А",45,"Аборт",3.5,7,2,null,null,7,2]
["Н",45,"Невынашивание",12,12,1,null,null,12,1]
[null,45,"Доп отпуск по бер и родам",{"$error":"#DIV/0!"},0,0]
[null,61,"Декретный",{"$error":"#DIV/0!"},0,0]
["У",54,"Уход",null,0,0]
["С",47,"Аномалии",null,10,1,null,null,10,1]
[null,null,"Другие",null,null,null,{"$f":"SUM(G5:G14)","v":0},{"$f":"SUM(H5:H14)","v":0},38,6,0,0,0,0,0,0,0,0,0,0,0,0,0,0,0]
[null,null,"ЯНВАРЬ 2016 ГОД","Итого",{"$f":"SUM(E5:E15)","v":38},{"$f":"SUM(F5:F16)","v":0},{"$f":"G15+I15+K15+M15+O15+Q15+S15+U15+W15+Y15","v":38},{"$f":"H15+J15+L15+N15+P15+R15+T15+V15+X15+Z15","v":6}]
[null,null,null,null,{"$f":"E16-G16","v":0},{"$f":"F16-H16","v":0},"проверка"]
[]
[null,null,null,null,"дней","случ","заб"]
[null,null,null,"не вошло:"]
[]
[null,null,null,"всего по мес",{"$f":"E16+E20","v":38}]

{"sheet":"ЯНВ 16","index":2,"n_rows":219,"n_cols":13,"rows_kept":219,"cut":false,"hidden":false,"merged":[]}
[]
[]
[]
[]
[null,null,"муж","возраст","заболевание","дней ВН","СЛУЧАЕВ","ЛН","ДУБЛ/СОВМ"]
[null,null,null,30,"А",5,1]
[null,null,null,37,"А",3,1]
[null,null,null,34,"А",3,1,null,null,null,null,null,"ЖКБ"]
[null,null,null,34,"А",2,1]
[null,null,null,23,"А",4,1]
[null,null,null,40,"А",4,1]
[null,null,null,29,"А",3,1]
[null,null,null,44,"А",6,1]
[null,null,null,32,"А",3,1]
[null,null,null,37,"А",3,1]
[null,null,null,34,"А",3,1]
[null,"ВАРИКОЦ",null,35,"А",3,1]
[null,null,null,24,"А",3,1]
[null,null,"М",42,"АЗ",3,1]
[null,null,"М",32,"АЗОО",3,1]
[null,null,"М",29,"В",3,1]
[null,null,null,29,"М",6,1]
[null,null,null,44,"М",3,1]
[null,null,null,42,"М",3,1]
[null,null,null,29,"М",3,1]
[null,null,null,37,"М",2,1]
[null,null,null,39,"М",13,1]
[null,null,null,34,"М",10,1]
[null,null,null,24,"М",2,1]
[null,null,null,54,"М",2,1]
[null,null,null,28,"М",4,1]
[null,null,null,42,"М",2,1]
[null,null,null,34,"М",4,1]
[null,null,null,28,"М",2,1]
[null,null,null,35,"М",2,1]
[null,null,null,39,"М",2,1]
[null,null,null,38,"Н",9,1]
[null,null,null,33,"Н",14,1]
[null,null,null,33,"Н",22,1]
[null,null,null,26,"Н",6,1]
[null,null,null,30,"Н",8,1]
[null,null,null,34,"Н",12,1]
[null,null,null,44,"Н",9,1]
[null,null,null,35,"Н",8,1]
[null,null,null,33,"Н",14,1]
[null,null,null,30,"Н",15,1]
[null,null,null,34,"Н",15,1]
[null,null,null,28,"Н",13,1]
[null,null,null,30,"Н",34,1]
[null,null,null,31,"Н",4,1]
[null,null,null,31,"Н",15,1]
[null,null,null,28,"Н",12,1]
[null,null,null,35,"Н",8,1]
[null,null,null,35,"Н",15,1]
[null,null,null,30,"Н",14,1]
[null,null,null,33,"Н",6,1]
[null,null,null,35,"Н",11,1]
[null,null,null,22,"Н",12,1]
[null,null,null,28,"Н",13,1]
[null,null,null,25,"Н",8,1]
[null,null,null,28,"О",3,1]
[null,null,null,30,"О",10,1]
[null,null,null,33,"О",3,1]
[null,null,null,58,"О",9,1]
[null,null,null,23,"О",7,1]
[null,null,null,36,"О",7,1]
[null,null,null,27,"О",3,1]
[null,null,null,38,"О",12,1]
[null,null,null,24,"С",10,1]
[null,null,null,37,"Э",14,1]
[null,null,null,39,"Э",21,1]
[null,null,null,32,"Э",14,1]
[null,null,null,41,"Э",1,1]
[null,null,null,31,"Э",17,1]
[null,null,null,23,"Э",19,1]
[null,null,null,30,"Э",2,1]
[null,null,null,43,"Э",12,1]
[null,null,null,40,"Э",27,1]
[null,null,null,34,"Э",22,1]
[null,null,null,27,"Э",17,1]
[null,null,null,31,"Э",7,1]
[null,null,null,34,"Э",18,1]
[null,null,null,31,"Э",6,1]
[null,null,null,33,"Э",20,1]
[null,null,null,29,"Э",17,1]
[null,null,null,30,"Э",15,1]
[null,null,null,null,null,null,{"$f":"SUM(G6:G86)","v":81}]
[]
[]
[]
[]
[]
[]
[]
[]
[]
[]
[]
[]
[]
[]
[]
[]
[]
[]
[]
[]
[]
[]
[]
[]
[]
[]
[]
[]
[]
[]
[]
[]
[]
[]
[]
[]
[]
[]
[]
[]
[]
[]
[]
[]
[]
[]
[]
[]
[]
[]
[]
[]
[]
[]
[]
[]
[]
[]
[]
[]
[]
[]
[]
[]
[]
[]
[]
[]
[]
[]
[]
[]
[]
[]
[]
[]
[]
[]
[]
[]
[]
[]
[]
[]
[]
[]
[]
[]
[]
[]
[]
[]
[]
[]
[]
[]
[]
[]
[]
[]
[]
[]
[]
[]
[]
[]
[]
[]
[]
[]
[]
[]
[]
[]
[]
[]
[]
[]
[]
[]
[]
[]
[]
[]
[]
[]
[]
[]
[]
[]
[]
[null,null,null,null,null,null,null,null,null,null,null,null," "]